bitfinex/quotes_BTCUSD_20250927
["timestamp","ask_amount","ask_price","bid_price","bid_amount"]
[1758951299978,0.81387366,109860.0,109850.0,5.96491225]
[1758951301581,0.63182378,109860.0,109850.0,5.96491225]
[1758951301986,0.81387366,109860.0,109850.0,5.96491225]
[1758951302843,0.63182378,109860.0,109850.0,5.96491225]
[1758951315428,0.42092544,109860.0,109850.0,5.96491225]
[1758951328574,0.42092544,109860.0,109850.0,6.05971225]
[1758951334840,0.19766521,109860.0,109850.0,6.05971225]
[1758951350605,0.19766521,109860.0,109850.0,6.21175008]
[1758951353208,0.0255207,109860.0,109850.0,6.21175008]
[1758951356017,0.07478,109870.0,109850.0,6.21175008]
[1758951356354,0.25682779,109870.0,109860.0,0.73978216]
[1758951356528,0.23204779,109870.0,109860.0,0.92183204]
[1758951356737,0.23204779,109870.0,109860.0,0.97393043]
[1758951356891,0.23204779,109870.0,109860.0,0.97702043]
[1758951359283,0.23204779,109870.0,109860.0,0.98602043]
[1758951359446,0.23204779,109870.0,109860.0,0.98702043]
[1758951368980,0.05,109870.0,109860.0,0.98702043]
[1758951369847,0.05,109870.0,109860.0,1.21513151]
[1758951370050,0.05,109870.0,109860.0,0.98702043]
[1758951370848,0.05,109870.0,109860.0,0.98602043]
[1758951371043,0.05,109870.0,109860.0,0.97702043]
[1758951371355,0.05,109870.0,109860.0,1.00302043]
[1758951371960,0.05,109870.0,109860.0,1.23113151]
[1758951372344,0.05,109870.0,109860.0,1.00302043]
[1758951372950,0.05,109870.0,109860.0,1.09778043]
[1758951374367,0.05,109870.0,109860.0,0.71946043]
[1758951374602,0.05,109870.0,109860.0,1.09778043]
[1758951375387,0.05,109870.0,109860.0,1.00298043]
[1758951375577,0.05,109870.0,109860.0,1.09778043]
[1758951375766,0.05,109870.0,109860.0,0.71946043]
[1758951375966,0.05,109870.0,109860.0,1.09778043]
[1758951378531,0.19113075,109890.0,109870.0,0.18203331]
[1758951378742,0.18201934,109880.0,109870.0,0.18502331]
[1758951378943,0.18201934,109880.0,109870.0,0.49511331]
[1758951379500,0.18201934,109880.0,109870.0,0.52248763]
[1758951379882,0.18201934,109880.0,109870.0,0.75059871]
[1758951380187,0.18201934,109880.0,109870.0,0.75259871]
[1758951380592,0.18201934,109880.0,109870.0,0.75059871]
[1758951380923,0.18201934,109880.0,109870.0,0.76859871]
[1758951381429,0.18201934,109880.0,109870.0,0.48507871]
[1758951381631,0.18201934,109880.0,109870.0,0.76859871]
[1758951387723,0.20239075,109890.0,109870.0,0.76859871]
[1758951387955,0.21672259,109890.0,109880.0,0.22811108]
[1758951388304,0.19966136,109890.0,109880.0,0.48578216]
[1758951388506,0.19966136,109890.0,109880.0,0.51315649]
[1758951388907,0.19966136,109890.0,109880.0,0.69517323]
[1758951388908,0.19110018,109890.0,109880.0,0.69517323]
[1758951389109,0.18200018,109890.0,109880.0,0.97869323]
[1758951389907,0.18200018,109890.0,109880.0,0.69517323]
[1758951390102,0.18200018,109890.0,109880.0,0.97869323]
[1758951390357,0.18200018,109890.0,109880.0,0.69717323]
[1758951390567,0.18200018,109890.0,109880.0,0.98865323]
[1758951393582,0.18200018,109890.0,109880.0,0.70517323]
[1758951393810,0.18200018,109890.0,109880.0,0.98865323]
[1758951395603,0.18200018,109890.0,109880.0,0.70517323]
[1758951395814,0.18200018,109890.0,109880.0,0.98865323]
[1758951397980,0.18200018,109890.0,109880.0,0.53243107]
[1758951398327,0.18200018,109890.0,109880.0,0.98865323]
[1758951402620,0.16526916,109900.0,109880.0,0.98865323]
[1758951402831,0.18200018,109890.0,109880.0,0.76054215]
[1758951403086,0.18200018,109890.0,109880.0,0.73316782]
[1758951403407,0.18200018,109890.0,109880.0,0.76054009]
[1758951403637,0.18200018,109890.0,109880.0,0.75854009]
[1758951404039,0.18200018,109890.0,109880.0,0.98765117]
[1758951404659,0.16526916,109900.0,109880.0,0.98765117]
[1758951404862,0.18600911,109900.0,109890.0,0.22811108]
[1758951405067,0.17960912,109900.0,109890.0,0.22811108]
[1758951405268,0.17960912,109900.0,109890.0,0.28022335]
[1758951406101,0.17960912,109900.0,109890.0,0.28238335]
[1758951406519,0.17960912,109900.0,109890.0,0.28538335]
[1758951406999,0.17960912,109900.0,109890.0,0.28322335]
[1758951407678,0.17960912,109900.0,109890.0,0.56666335]
[1758951407911,0.17960912,109900.0,109890.0,0.05511227]
[1758951408129,0.17960912,109900.0,109890.0,0.28322335]
[1758951408349,0.18600951,109900.0,109890.0,0.56666335]
[1758951410784,0.18600951,109900.0,109890.0,0.64256932]
[1758951411168,0.18600951,109900.0,109890.0,0.35912932]
[1758951411379,0.18600951,109900.0,109890.0,0.64256932]
[1758951414294,0.18601224,109900.0,109890.0,0.64256932]
[1758951416760,0.18601224,109900.0,109890.0,0.64472932]
[1758951417370,0.18601224,109900.0,109890.0,0.36128932]
[1758951417567,0.18601224,109900.0,109890.0,0.05727227]
[1758951417788,0.18601224,109900.0,109890.0,0.34071227]
[1758951418000,0.18601224,109900.0,109890.0,0.05727227]
[1758951418214,0.18601224,109900.0,109890.0,0.33855227]
[1758951420632,0.18601224,109900.0,109890.0,0.05511227]
[1758951420832,0.18601224,109900.0,109890.0,0.33855227]
[1758951421254,0.18601998,109900.0,109890.0,0.33855227]
[1758951421474,0.49003703,109900.0,109890.0,0.05511227]
[1758951421703,0.49003703,109900.0,109890.0,0.15331227]
[1758951421985,0.18601998,109900.0,109890.0,0.15331227]
[1758951423448,0.18601998,109900.0,109890.0,0.33855227]
[1758951424252,0.18601998,109900.0,109890.0,0.05511227]
[1758951424565,0.18601998,109900.0,109890.0,0.33855227]
[1758951424964,0.18601998,109900.0,109890.0,0.34395227]
[1758951434754,0.18601998,109900.0,109890.0,0.64796932]
[1758951435995,0.18601998,109900.0,109890.0,0.65728864]
[1758951437768,0.18601998,109900.0,109890.0,0.64796932]
[1758951437973,0.20757628,109910.0,109890.0,0.64796932]
[1758951437974,0.17666981,109910.0,109890.0,0.64796932]
[1758951438194,0.16540981,109910.0,109890.0,0.6536888]
[1758951438405,0.18201176,109900.0,109890.0,0.64472932]
[1758951438844,0.19111094,109900.0,109890.0,0.64787932]
[1758951439309,0.19111094,109900.0,109890.0,0.64587932]
[1758951439563,0.19111094,109900.0,109890.0,0.64987932]
[1758951439772,0.19111094,109900.0,109890.0,0.65486437]
[1758951440069,0.19111094,109900.0,109890.0,0.65386437]
[1758951440180,0.19111094,109900.0,109890.0,0.66386437]
[1758951441252,0.19111094,109900.0,109890.0,0.66486437]
[1758951441659,0.19111094,109900.0,109890.0,0.65587932]
[1758951443008,0.19111094,109900.0,109890.0,0.66483231]
[1758951446234,0.19111094,109900.0,109890.0,0.84683249]
[1758951446451,0.19111094,109900.0,109890.0,0.66483231]
[1758951446839,0.19111094,109900.0,109890.0,0.37243932]
[1758951446973,0.19111094,109900.0,109890.0,0.65583932]
[1758951449709,0.19111094,109900.0,109890.0,0.66504579]
[1758951449828,0.19964955,109900.0,109890.0,0.66504579]
[1758951452533,0.19964955,109900.0,109890.0,0.38164579]
[1758951452696,0.19964955,109900.0,109890.0,0.66504579]
[1758951452899,0.01684611,109900.0,109890.0,0.06842227]
[1758951453111,0.19031926,109900.0,109890.0,0.35182227]
[1758951453337,0.21593707,109900.0,109890.0,0.35182227]
[1758951453983,0.21593707,109900.0,109890.0,0.35250227]
[1758951454229,0.21593707,109900.0,109890.0,0.65651932]
[1758951454460,0.21593707,109900.0,109890.0,0.37243932]
[1758951454659,0.21593707,109900.0,109890.0,0.65647932]
[1758951454911,0.21593707,109900.0,109890.0,0.35246227]
[1758951455452,0.21593707,109900.0,109890.0,0.65647932]
[1758951455877,0.21593707,109900.0,109890.0,0.37243932]
[1758951456224,0.21593707,109900.0,109890.0,0.65647932]
[1758951456658,0.19885787,109900.0,109890.0,0.65647932]
[1758951459466,0.19885787,109900.0,109890.0,0.37243932]
[1758951459750,0.19885787,109900.0,109890.0,0.65647932]
[1758951462350,0.19885787,109900.0,109890.0,0.37243932]
[1758951462549,0.19885787,109900.0,109890.0,0.65643932]
[1758951463391,0.21594286,109900.0,109890.0,0.65643932]
[1758951465460,0.21594286,109900.0,109890.0,0.37243932]
[1758951465670,0.21594286,109900.0,109890.0,0.65639932]
[1758951466078,0.21594286,109900.0,109890.0,0.37243932]
[1758951466286,0.21594286,109900.0,109890.0,0.65635932]
[1758951469416,0.2223517,109900.0,109890.0,0.65635932]
[1758951470702,0.2223517,109900.0,109890.0,0.58035423]
[1758951471626,0.2223517,109900.0,109890.0,0.29643423]
[1758951471833,0.2223517,109900.0,109890.0,0.58059423]
[1758951472924,0.22235821,109900.0,109890.0,0.58059423]
[1758951475976,0.22235821,109900.0,109890.0,0.29643423]
[1758951476324,0.22235821,109900.0,109890.0,0.58055423]
[1758951476782,0.23157199,109900.0,109890.0,0.58055423]
[1758951477422,0.22236345,109900.0,109890.0,0.58055423]
[1758951477554,0.22236345,109900.0,109890.0,0.35254227]
[1758951477766,0.22236345,109900.0,109890.0,0.58055423]
[1758951478196,0.03204419,109900.0,109890.0,0.58055423]
[1758951478373,0.03204419,109900.0,109890.0,0.29643423]
[1758951478571,0.21405595,109900.0,109890.0,0.58051423]
[1758951478793,0.22315513,109900.0,109890.0,0.58051423]
[1758951480507,0.23218444,109900.0,109890.0,0.58051423]
[1758951487006,0.23218444,109900.0,109890.0,0.35250227]
[1758951487192,0.23218444,109900.0,109890.0,0.58051423]
[1758951493126,0.23218455,109900.0,109890.0,0.58051423]
[1758951495222,0.23218455,109900.0,109890.0,0.35250227]
[1758951495427,0.23218455,109900.0,109890.0,0.58051423]
[1758951495879,0.23218455,109900.0,109890.0,0.58043423]
[1758951496081,0.23218455,109900.0,109890.0,0.29643423]
[1758951496609,0.23218455,109900.0,109890.0,0.57516423]
[1758951497440,0.23218455,109900.0,109890.0,0.57712423]
[1758951497671,0.23218455,109900.0,109890.0,0.58025423]
[1758951505088,0.23218122,109900.0,109890.0,0.58025423]
[1758951510275,0.03466144,109900.0,109890.0,0.58025423]
[1758951510604,0.2166732,109900.0,109890.0,0.58025423]
[1758951510927,0.22577238,109900.0,109890.0,0.58025423]
[1758951512080,0.22577238,109900.0,109890.0,0.35224227]
[1758951512337,0.22577238,109900.0,109890.0,0.58025423]
[1758951512729,0.22581881,109900.0,109890.0,0.58025423]
[1758951516283,0.22581881,109900.0,109890.0,0.57997423]
[1758951518950,0.2172707,109900.0,109890.0,0.57997423]
[1758951519213,0.22581271,109900.0,109890.0,0.57997423]
[1758951522085,0.23221995,109900.0,109890.0,0.57997423]
[1758951526726,0.23221995,109900.0,109890.0,0.57985423]
[1758951528148,0.23221995,109900.0,109890.0,0.57981423]
[1758951529428,0.23221995,109900.0,109890.0,0.29621423]
[1758951529628,0.23221995,109900.0,109890.0,0.57981423]
[1758951530657,0.02164461,109900.0,109890.0,0.57981423]
[1758951530843,0.21275555,109900.0,109890.0,0.57981423]
[1758951531768,0.22180976,109900.0,109890.0,0.57981423]
[1758951532641,0.22180976,109900.0,109890.0,0.35180227]
[1758951532877,0.21275555,109900.0,109890.0,0.35180227]
[1758951535408,0.22208012,109900.0,109890.0,0.35180227]
[1758951538488,0.21275555,109900.0,109890.0,0.35180227]
[1758951538908,0.16239805,109910.0,109900.0,0.86855597]
[1758951539125,0.16007104,109910.0,109900.0,0.86855597]
[1758951539353,0.16007104,109910.0,109900.0,0.89328597]
[1758951539592,0.16007104,109910.0,109900.0,0.92065825]
[1758951541254,0.16007104,109910.0,109900.0,0.92465825]
[1758951545346,0.16007104,109910.0,109900.0,0.92670825]
[1758951545847,0.16007104,109910.0,109900.0,0.92965825]
[1758951548723,0.16007104,109910.0,109900.0,0.92670825]
[1758951548918,0.16007104,109910.0,109900.0,0.92970825]
[1758951551021,0.1921152,109910.0,109900.0,0.92970825]
[1758951553985,0.03204416,109910.0,109900.0,1.11169187]
[1758951554190,0.00854511,109910.0,109900.0,1.51052098]
[1758951554394,0.01126,109920.0,109910.0,0.18196706]
[1758951554600,0.00858744,109920.0,109910.0,0.78207237]
[1758951554853,4.642e-05,109920.0,109910.0,0.80680237]
[1758951555050,4.642e-05,109920.0,109910.0,0.8249327]
[1758951556050,4.642e-05,109920.0,109910.0,0.8359327]
[1758951565272,4.642e-05,109920.0,109910.0,0.5521327]
[1758951565453,4.642e-05,109920.0,109910.0,0.9305327]
[1758951565892,4.642e-05,109920.0,109910.0,0.5521327]
[1758951566256,4.642e-05,109920.0,109910.0,0.9304927]
[1758951568100,4.642e-05,109920.0,109910.0,0.5521327]
[1758951568300,4.642e-05,109920.0,109910.0,0.9304927]
[1758951569606,4.642e-05,109920.0,109910.0,0.9304527]
[1758951569819,4.642e-05,109920.0,109910.0,0.5521327]
[1758951570040,4.642e-05,109920.0,109910.0,0.9304527]
[1758951570658,4.642e-05,109920.0,109910.0,0.9305327]
[1758951572361,4.642e-05,109920.0,109910.0,0.5521327]
[1758951572529,4.642e-05,109920.0,109910.0,0.9305327]
[1758951573260,4.642e-05,109920.0,109910.0,0.9304927]
[1758951573631,4.642e-05,109920.0,109910.0,0.5521327]
[1758951573958,4.642e-05,109920.0,109910.0,0.9304927]
[1758951577570,0.18193411,109930.0,109910.0,0.9304927]
[1758951577827,0.1910308,109930.0,109920.0,0.00304]
[1758951578145,0.1910308,109930.0,109920.0,0.00504]
[1758951578377,0.19954605,109930.0,109920.0,0.02777]
[1758951578904,0.19954605,109930.0,109920.0,0.05513449]
[1758951579460,0.19954605,109930.0,109920.0,0.33869449]
[1758951585330,0.20595007,109930.0,109920.0,0.33869449]
[1758951586679,0.20597412,109930.0,109920.0,0.33869449]
[1758951594911,0.43388518,109930.0,109920.0,0.33869449]
[1758951595293,0.43388776,109930.0,109920.0,0.05513449]
[1758951595488,0.43388776,109930.0,109920.0,0.05009449]
[1758951595706,0.43388776,109930.0,109920.0,0.33357449]
[1758951596012,0.2059767,109930.0,109920.0,0.30621]
[1758951596238,0.43388776,109930.0,109920.0,0.30621]
[1758951596458,0.43388776,109930.0,109920.0,0.31128]
[1758951597178,0.4274809,109930.0,109920.0,0.31128]
[1758951598877,0.22791106,109930.0,109920.0,0.31128]
[1758951599111,0.40984517,109930.0,109920.0,0.02273]
[1758951599279,0.40984517,109930.0,109920.0,0.30621]
[1758951599280,0.442433,109930.0,109920.0,0.30621]
[1758951605178,0.21452194,109930.0,109920.0,0.30828]
[1758951605389,0.442433,109930.0,109920.0,0.30621]
[1758951609178,0.442433,109930.0,109920.0,0.31124]
[1758951609744,0.42534878,109930.0,109920.0,0.31124]
[1758951610955,0.43388446,109930.0,109920.0,0.31124]
[1758951611410,0.43388452,109930.0,109920.0,0.31124]
[1758951614946,0.20597346,109930.0,109920.0,0.31124]
[1758951616202,0.02403935,109930.0,109920.0,0.31124]
[1758951616405,0.20597346,109930.0,109920.0,0.31124]
[1758951617937,0.19956654,109930.0,109920.0,0.31124]
[1758951618153,0.20596884,109930.0,109920.0,0.53915106]
[1758951621336,0.20596884,109930.0,109920.0,0.31124]
[1758951621545,0.20596884,109930.0,109920.0,0.53915106]
[1758951621967,0.20596884,109930.0,109920.0,0.31124]
[1758951622171,0.20596884,109930.0,109920.0,0.53915106]
[1758951624492,0.2059699,109930.0,109920.0,0.53915106]
[1758951629726,0.2059699,109930.0,109920.0,0.31124]
[1758951629923,0.2059699,109930.0,109920.0,0.53915106]
[1758951630749,0.2059699,109930.0,109920.0,0.25567106]
[1758951631078,0.22304822,109930.0,109920.0,0.30621]
[1758951632830,0.22304822,109930.0,109920.0,0.30819]
[1758951633072,0.22304822,109930.0,109920.0,0.31121]
[1758951639666,0.22304822,109930.0,109920.0,0.02773]
[1758951639809,0.22304822,109930.0,109920.0,0.31121]
[1758951642279,0.22305256,109930.0,109920.0,0.31121]
[1758951642757,0.22305256,109930.0,109920.0,0.02471]
[1758951642972,0.22305256,109930.0,109920.0,0.30819]
[1758951643188,0.0256184,109930.0,109920.0,0.30819]
[1758951643363,0.18193411,109930.0,109920.0,0.30819]
[1758951643535,0.18193411,109930.0,109920.0,0.31133]
[1758951643746,0.1910308,109930.0,109920.0,0.31133]
[1758951648491,0.00909669,109930.0,109920.0,0.31133]
[1758951649095,0.1910308,109930.0,109920.0,0.31133]
[1758951652367,0.1910308,109930.0,109920.0,0.02785]
[1758951652719,0.1910308,109930.0,109920.0,0.31129]
[1758951655306,0.22305696,109930.0,109920.0,0.31129]
[1758951656763,0.22305696,109930.0,109920.0,0.33865631]
[1758951659441,0.22305804,109930.0,109920.0,0.33865631]
[1758951667866,0.21451773,109930.0,109920.0,0.33865631]
[1758951668021,0.22306026,109930.0,109920.0,0.33865631]
[1758951675357,0.22306056,109930.0,109920.0,0.33865631]
[1758951681060,0.22306056,109930.0,109920.0,0.05521631]
[1758951681257,0.22306056,109930.0,109920.0,0.33865631]
[1758951684105,0.22306682,109930.0,109920.0,0.33865631]
[1758951687986,0.22306677,109930.0,109920.0,0.33865631]
[1758951698614,0.00014864,109930.0,109920.0,0.33865631]
[1758951698791,0.1910308,109930.0,109920.0,0.33865631]
[1758951709887,0.76158184,109940.0,109920.0,0.33865631]
[1758951710175,0.18193411,109930.0,109920.0,0.33865631]
[1758951710544,0.21397208,109930.0,109920.0,0.33865631]
[1758951710789,0.22306877,109930.0,109920.0,0.33865631]
[1758951711902,0.22306877,109930.0,109920.0,0.33965631]
[1758951714579,0.22306886,109930.0,109920.0,0.33965631]
[1758951718879,0.22306894,109930.0,109920.0,0.33965631]
[1758951720064,0.22306921,109930.0,109920.0,0.33965631]
[1758951726316,0.22306923,109930.0,109920.0,0.33965631]
[1758951740111,2.82078421,109930.0,109920.0,0.02373]
[1758951740340,2.64700121,109930.0,109920.0,0.02373]
[1758951740606,2.2440942,109930.0,109920.0,0.02373]
[1758951742038,2.47201919,109930.0,109920.0,0.02373]
[1758951743724,2.82628645,109930.0,109920.0,0.02373]
[1758951744267,2.27124145,109930.0,109920.0,0.02373]
[1758951744914,2.22162945,109930.0,109920.0,0.02373]
[1758951745250,1.93822945,109930.0,109920.0,0.02373]
[1758951745679,2.22158587,109930.0,109920.0,0.02373]
[1758951746079,1.90203487,109930.0,109920.0,0.02373]
[1758951746282,2.16275987,109930.0,109920.0,0.02373]
[1758951755828,2.16279987,109930.0,109920.0,0.02373]
[1758951756688,1.87933025,109930.0,109920.0,0.02373]
[1758951756886,1.72457725,109930.0,109920.0,0.02373]
[1758951757501,1.58391025,109930.0,109920.0,0.02373]
[1758951757837,1.84303925,109930.0,109920.0,0.02373]
[1758951763846,1.82917125,109930.0,109920.0,0.02373]
[1758951765645,1.82917627,109930.0,109920.0,0.02373]
[1758951769276,1.63227686,109930.0,109920.0,0.02373]
[1758951769480,1.63814547,109930.0,109920.0,0.02373]
[1758951769684,1.82007958,109930.0,109920.0,0.02373]
[1758951769887,1.82917627,109930.0,109920.0,0.02373]
[1758951770732,1.89662924,109930.0,109920.0,0.02373]
[1758951770933,0.52196706,109910.0,109900.0,0.87170597]
[1758951771177,1.0652623,109910.0,109900.0,0.90114822]
[1758951771768,1.09263455,109910.0,109900.0,0.90114822]
[1758951772927,1.09263455,109910.0,109900.0,0.90214822]
[1758951773117,1.09263455,109910.0,109900.0,0.92562822]
[1758951775529,1.09263455,109910.0,109900.0,0.89825597]
[1758951776586,1.0652623,109910.0,109900.0,0.89825597]
[1758951777656,0.59277519,109910.0,109900.0,0.89825597]
[1758951777840,1.05814225,109910.0,109900.0,0.89825597]
[1758951778073,0.7252623,109910.0,109900.0,0.89825597]
[1758951778795,0.49733731,109910.0,109900.0,0.89825597]
[1758951779199,0.21393731,109910.0,109900.0,0.89825597]
[1758951779431,0.49733731,109910.0,109900.0,0.89825597]
[1758951781776,0.49734867,109910.0,109900.0,0.89825597]
[1758951783190,0.21394867,109910.0,109900.0,0.89825597]
[1758951783391,0.49734867,109910.0,109900.0,0.89825597]
[1758951783818,0.21394867,109910.0,109900.0,0.89825597]
[1758951784019,0.21394867,109910.0,109900.0,1.20230559]
[1758951784227,0.49734867,109910.0,109900.0,1.20230559]
[1758951784648,0.49734867,109910.0,109900.0,0.89825597]
[1758951784821,0.21394867,109910.0,109900.0,0.89825597]
[1758951785020,0.49734867,109910.0,109900.0,0.89825597]
[1758951790243,0.49734867,109910.0,109900.0,1.18165597]
[1758951799161,0.49734867,109910.0,109900.0,0.89825597]
[1758951799362,0.49734867,109910.0,109900.0,1.18165597]
[1758951809222,0.49734867,109910.0,109900.0,0.89825597]
[1758951809434,0.49734867,109910.0,109900.0,1.18161597]
[1758951812375,0.49734867,109910.0,109900.0,0.89825597]
[1758951812583,0.49734867,109910.0,109900.0,1.18161597]
[1758951817510,0.49734867,109910.0,109900.0,0.89825597]
[1758951817730,0.49734867,109910.0,109900.0,1.18161597]
[1758951818376,0.49739064,109910.0,109900.0,1.18161597]
[1758951832884,0.49739064,109910.0,109900.0,1.18157597]
[1758951835918,0.49739064,109910.0,109900.0,0.89825597]
[1758951836121,0.49739064,109910.0,109900.0,1.18157597]
[1758951836692,0.52476292,109910.0,109900.0,1.18157597]
[1758951839786,0.52476059,109910.0,109900.0,1.18157597]
[1758951844998,0.3270545,109910.0,109900.0,1.18157597]
[1758951845318,0.50902156,109910.0,109900.0,1.18157597]
[1758951847115,0.50902156,109910.0,109900.0,1.40957101]
[1758951847525,0.50902156,109910.0,109900.0,1.18157597]
[1758951847747,0.50902156,109910.0,109900.0,1.40957101]
[1758951849349,0.50902156,109910.0,109900.0,1.18157597]
[1758951854527,0.22642711,109910.0,109900.0,1.40957101]
[1758951854728,0.50970711,109910.0,109900.0,1.40957101]
[1758951856408,0.50970711,109910.0,109900.0,1.18157597]
[1758951857251,0.28328,109910.0,109900.0,1.18157597]
[1758951857470,0.46524706,109910.0,109900.0,1.18157597]
[1758951858071,0.46524706,109910.0,109900.0,1.20894737]
[1758951860304,0.46524706,109910.0,109900.0,1.20890737]
[1758951865416,0.6932421,109910.0,109900.0,1.20890737]
[1758951866224,0.70819445,109910.0,109900.0,1.20890737]
[1758951869254,0.7252828,109910.0,109900.0,1.20890737]
[1758951874008,0.7252828,109910.0,109900.0,1.20886737]
[1758951874844,0.72528308,109910.0,109900.0,1.20886737]
[1758951876075,0.7252832,109910.0,109900.0,1.20886737]
[1758951884785,0.7252834,109910.0,109900.0,1.20886737]
[1758951885958,0.7252434,109910.0,109900.0,1.20886737]
[1758951888684,0.4420034,109910.0,109900.0,1.20886737]
[1758951888888,0.7252034,109910.0,109900.0,1.20886737]
[1758951892702,0.49720836,109910.0,109900.0,1.20886737]
[1758951892908,0.7252034,109910.0,109900.0,1.20886737]
[1758951894721,0.49720836,109910.0,109900.0,1.20886737]
[1758951894925,0.7252034,109910.0,109900.0,1.20886737]
[1758951896535,0.49720836,109910.0,109900.0,1.20886737]
[1758951896747,0.7252034,109910.0,109900.0,1.20886737]
[1758951900576,0.49720836,109910.0,109900.0,1.20886737]
[1758951900771,0.7252034,109910.0,109900.0,1.20886737]
[1758951902661,0.80124108,109910.0,109900.0,1.20886737]
[1758951903527,0.80124108,109910.0,109900.0,1.20882737]
[1758951905258,0.80124108,109910.0,109900.0,0.92562737]
[1758951905680,0.80124108,109910.0,109900.0,1.20567737]
[1758951906632,0.80124108,109910.0,109900.0,0.92247737]
[1758951906856,0.80124108,109910.0,109900.0,1.20360737]
[1758951910701,0.80124108,109910.0,109900.0,0.92040737]
[1758951910909,0.80124108,109910.0,109900.0,1.20360737]
[1758951911268,0.80124108,109910.0,109900.0,1.20570737]
[1758951911676,0.80124108,109910.0,109900.0,1.20887737]
[1758951918670,0.49720836,109910.0,109900.0,1.20887737]
[1758951918910,0.80124108,109910.0,109900.0,1.20887737]
[1758951924334,0.61927402,109910.0,109900.0,1.20887737]
[1758951924543,0.80124108,109910.0,109900.0,1.20887737]
[1758951926177,0.21400836,109910.0,109900.0,1.20887737]
[1758951926378,0.80128108,109910.0,109900.0,1.20887737]
[1758951928449,0.49724836,109910.0,109900.0,1.20887737]
[1758951928670,0.80128108,109910.0,109900.0,1.20887737]
[1758951929303,0.51804108,109910.0,109900.0,1.20887737]
[1758951929500,0.80176108,109910.0,109900.0,1.20887737]
[1758951930263,0.51804108,109910.0,109900.0,1.20887737]
[1758951930465,0.80208108,109910.0,109900.0,1.20887737]
[1758951937085,0.51804108,109910.0,109900.0,1.20887737]
[1758951937274,0.80208108,109910.0,109900.0,1.20887737]
[1758951939272,0.0320413,109910.0,109900.0,1.51291009]
[1758951939487,0.0320413,109910.0,109900.0,1.39086099]
[1758951939694,0.0320413,109910.0,109900.0,1.20887737]
[1758951939898,0.21400836,109910.0,109900.0,0.92567737]
[1758951940118,0.51804108,109910.0,109900.0,0.92567737]
[1758951940463,0.21400836,109910.0,109900.0,1.20983737]
[1758951943843,0.21400836,109910.0,109900.0,0.92567737]
[1758951943975,0.21400836,109910.0,109900.0,1.20979737]
[1758951947045,0.18196706,109910.0,109900.0,1.20979737]
[1758951951205,0.18196706,109910.0,109900.0,1.39178099]
[1758951951404,0.02273,109920.0,109900.0,1.39178099]
[1758951951602,0.79275795,109920.0,109910.0,0.00324]
[1758951951855,0.77002795,109920.0,109910.0,0.00525]
[1758951952065,0.48598795,109920.0,109910.0,0.0575883]
[1758951952286,0.77014795,109920.0,109910.0,0.0575883]
[1758951953350,0.77014795,109920.0,109910.0,0.3417483]
[1758951953558,0.77014795,109920.0,109910.0,0.3427483]
[1758951956365,0.77014795,109920.0,109910.0,0.0585883]
[1758951956787,0.77014795,109920.0,109910.0,0.3426683]
[1758951958864,0.80217434,109920.0,109910.0,0.3426683]
[1758951960818,0.80217476,109920.0,109910.0,0.3426683]
[1758951961277,0.80217476,109920.0,109910.0,0.0585883]
[1758951961474,0.80217476,109920.0,109910.0,0.3393883]
[1758951961900,0.80217476,109920.0,109910.0,0.3426283]
[1758951962097,0.80217476,109920.0,109910.0,0.0585883]
[1758951962550,0.95415492,109920.0,109910.0,0.0585883]
[1758951963924,0.95415492,109920.0,109910.0,0.03122]
[1758951965559,0.49814204,109920.0,109910.0,0.03122]
[1758951965756,0.95415492,109920.0,109910.0,0.03122]
[1758951967461,0.95411492,109920.0,109910.0,0.03122]
[1758951968427,0.66999492,109920.0,109910.0,0.03122]
[1758951968625,0.95415492,109920.0,109910.0,0.03122]
[1758951970220,0.66999492,109920.0,109910.0,0.03122]
[1758951970433,0.95411492,109920.0,109910.0,0.03122]
[1758951970585,0.95411492,109920.0,109910.0,0.02798]
[1758951971485,0.95411492,109920.0,109910.0,0.03107]
[1758951973030,0.95411492,109920.0,109910.0,0.02798]
[1758951976019,0.95411492,109920.0,109910.0,0.03107]
[1758951977516,0.95411842,109920.0,109910.0,0.03107]
[1758951978580,0.95412114,109920.0,109910.0,0.03107]
[1758951982477,0.95404114,109920.0,109910.0,0.03107]
[1758951983149,0.67000114,109920.0,109910.0,0.03107]
[1758951983387,0.95404114,109920.0,109910.0,0.03107]
[1758951985909,0.67000114,109920.0,109910.0,0.03107]
[1758951986097,0.95400114,109920.0,109910.0,0.0492667]
[1758951986630,0.95400114,109920.0,109910.0,0.03107]
[1758951989954,0.49798826,109920.0,109910.0,0.03107]
[1758951990194,0.95400114,109920.0,109910.0,0.03107]
[1758951994168,0.67000114,109920.0,109910.0,0.03107]
[1758951994374,0.95392114,109920.0,109910.0,0.03107]
[1758952003978,0.67000114,109920.0,109910.0,0.03107]
[1758952004193,0.95376114,109920.0,109910.0,0.03107]
[1758952006701,0.95200969,109920.0,109910.0,0.03107]
[1758952007805,0.95196969,109920.0,109910.0,0.03107]
[1758952011891,0.95197007,109920.0,109910.0,0.03107]
[1758952014851,0.70009013,109920.0,109910.0,0.03107]
[1758952015873,0.41637013,109920.0,109910.0,0.03107]
[1758952016084,0.70005013,109920.0,109910.0,0.03107]
[1758952017352,0.70005013,109920.0,109910.0,0.05843831]
[1758952018213,0.92805657,109920.0,109910.0,0.05843831]
[1758952018634,0.70005013,109920.0,109910.0,0.05843831]
[1758952019771,0.70005013,109920.0,109910.0,0.05534831]
[1758952019984,0.70005013,109920.0,109910.0,0.05333831]
[1758952020229,0.92805657,109920.0,109910.0,0.05333831]
[1758952020662,0.92805696,109920.0,109910.0,0.05333831]
[1758952022341,0.71279869,109920.0,109910.0,0.05333831]
[1758952022546,0.89475392,109920.0,109910.0,0.05333831]
[1758952024405,0.66674748,109920.0,109910.0,0.05333831]
[1758952024604,0.74272004,109920.0,109910.0,0.05333831]
[1758952024808,0.74272004,109920.0,109910.0,0.02597]
[1758952025219,0.74272004,109920.0,109910.0,0.05333997]
[1758952025664,0.77009002,109920.0,109910.0,0.05333997]
[1758952026100,0.51971306,109920.0,109910.0,0.05333997]
[1758952026523,0.80339306,109920.0,109910.0,0.05333997]
[1758952026728,0.51971306,109920.0,109910.0,0.05333997]
[1758952026862,0.80339306,109920.0,109910.0,0.05333997]
[1758952027986,0.51971306,109920.0,109910.0,0.05333997]
[1758952028190,0.80335306,109920.0,109910.0,0.05333997]
[1758952028419,0.49937406,109920.0,109910.0,0.05333997]
[1758952029652,0.21573406,109920.0,109910.0,0.05333997]
[1758952029992,0.49937324,109920.0,109910.0,0.05333997]
[1758952031422,0.21573324,109920.0,109910.0,0.05333997]
[1758952031637,0.49933324,109920.0,109910.0,0.05333997]
[1758952032044,0.50787728,109920.0,109910.0,0.05333997]
[1758952033104,0.50783728,109920.0,109910.0,0.05333997]
[1758952034406,0.22427728,109920.0,109910.0,0.05333997]
[1758952034659,0.50783728,109920.0,109910.0,0.05333997]
[1758952036526,0.52492534,109920.0,109910.0,0.05333997]
[1758952038205,0.24136534,109920.0,109910.0,0.05333997]